Cogmind - Beta 9.6 @@@ ROGUE MODE // 2020.05.08 @ 22:54:07 Player: Baron Von Bulldog Result: Self-destructed Performance ------------- Evolutions (1) 500 Regions Visited (2) 400 Robots Destroyed (13) 65 Value Destroyed (311) 311 Prototype IDs (0) 0 Alien Tech Used (0) 0 Bonus (0) 0 TOTAL SCORE: 1276 Bonus ------- None Cogmind --------- Core Integrity 400/400 Matter 280/300 Energy 500/500 System Corruption 0% Temperature Cool (11) Movement Core (150) Ox2 Location -9/Materials Parts ------- > --- POWER (1) -------- (None) > --- PROPULSION (2) --- (None) > --- UTILITY (4) ------ Small Storage Unit High-capacity Battery Power Shielding > --- WEAPON (2) ------- (None) > --- INVENTORY (6) ---- Improved Heat Sink Large Battery (300) Structural Scanner Improved Targeting Computer Light Armor Plating Peak State ------------ > --- POWER ------------ Ion Engine > --- PROPULSION ------- Light Treads Light Treads > --- UTILITY ---------- Heat Sink Small Storage Unit > --- WEAPON ----------- Small Laser Particle Gun > --- INVENTORY -------- Improved Heat Sink Large Battery High-capacity Battery Structural Scanner Light Armor Plating [Rating: 8] Favorites ----------- Power Ion Engine Engine Ion Engine Propulsion Light Treads Treads Light Treads Utility Small Storage Unit Device Heat Sink Storage Small Storage Unit Protection Power Shielding Weapon Small Laser Energy Gun Small Laser Ballistic Gun Light Assault Rifle Build | -11 -10 -9 ------- Run | Scr Mat Mat Slots Evolved 2 | . . 2 Power . | . . . Propulsion . | . . . Utility 2 | . . 2 Weapon . | . . . Parts Attached 17 | 2 11 4 Power 4 | . 4 . Engine 4 | . 4 . Core . | . . . Reactor . | . . . Propulsion 2 | 1 1 . Treads 2 | 1 1 . Leg . | . . . Wheel . | . . . Hover . | . . . Flight . | . . . Utility 6 | 1 1 4 Device 1 | . 1 . Storage 4 | 1 . 3 Processor . | . . . Hackware . | . . . Protection 1 | . . 1 Artifact . | . . . Weapon 5 | . 5 . Energy Gun 4 | . 4 . Energy Cannon . | . . . Ballistic Gun 1 | . 1 . Ballistic Cannon . | . . . Launcher . | . . . Special Weapon . | . . . Impact Weapon . | . . . Slashing Weapon . | . . . Piercing Weapon . | . . . Special Melee Weapon . | . . . Unidentified Prototypes . | . . . Parts Lost 8 | . 4 4 Power 1 | . . 1 Propulsion 2 | . 1 1 Utility 1 | . . 1 Weapon 4 | . 3 1 Highest Loss Streak 4 | . 2 4 Average Slot Usage (%) 92 | . 93 73 Engine 13 | . 13 9 Treads 26 | . 27 9 Device 9 | . 9 11 Storage 14 | . 14 20 Energy Gun 20 | . 21 11 Ballistic Gun 5 | . 5 . Naked Turns . | . . . Heaviest Build 16 | 4 14 16 Greatest Support 40 | 20 40 20 Greatest Overweight (x) . | . . . Average Overweight (x) . | . . . Largest Inventory Capacity 6 | 6 6 6 Average Capacity 5 | 5 6 5 Most Carried 6 | 6 6 5 Average Carried 4 | 5 4 4 Final Capacity 6 | 6 6 6 Final Carried 6 | 6 6 5 Class Distribution -------------------- 100% | Mutant Dominant Class ---------------- Mutant | -10/Materials Mutant | -9/Materials Resources | -11 -10 -9 ----------- Run | Scr Mat Mat Matter Collected 342 | 174 168 . Remotely . | . . . Salvage Created 361 | . 361 . Parts 24 | . 24 . Haulers Intercepted . | . . . Recyclers Shooed 1 | . 1 . Parts Field Recycled . | . . . Retrieved Matter . | . . . Parts Self-Destructed . | . . . Prevented . | . . . Kills | -11 -10 -9 ------- Run | Scr Mat Mat Combat Hostiles Destroyed 13 | . 13 . Guns 13 | . 13 . Classes Destroyed 2 | . 2 . Swarmer 6 | . 6 . Grunt 7 | . 7 . Best Kill Streak 4 | . 4 . Combat Bots Only 4 | . 4 . Max Kills in Single Turn 1 | . 1 . Gunslinging . | . . . Exploded . | . . . Melee . | . . . Uniques/NPCs Destroyed . | . . . Combat | -11 -10 -9 -------- Run | Scr Mat Mat Damage Taken 827 | . 694 133 Core 146 | . 146 . Absorbed by Shields . | . . . Core Remaining (%) 70 | 100 41 . Volleys Fired 70 | . 64 6 Largest 2 | . 2 1 Hottest 105 | . 105 40 Shots Fired 118 | . 112 6 Gun 118 | . 112 6 Cannon . | . . . Launcher . | . . . Special . | . . . Kinetic 30 | . 30 . Thermal 88 | . 82 6 Explosive . | . . . Electromagnetic . | . . . Robot Hit Streak 5 | . 5 3 Robot Miss Streak 4 | . 4 2 Penetration Max . | . . . Secondary Targets 1 | . 1 . Max Gunslinging Chain 1 | . 1 . Shots Hit Robots 65 | . 61 4 Core Hits 23 | . 23 . Critical Hits . | . . . Critical Kills . | . . . Critical Parts Destroyed . | . . . Melee Attacks . | . . . Impact . | . . . Slashing . | . . . Piercing . | . . . Sneak Attacks . | . . . Combat Hostiles . | . . . Follow-up Attacks . | . . . Damage Inflicted 794 | 1 752 41 Guns 773 | . 732 41 Cannons . | . . . Explosions . | . . . Melee . | . . . Ramming 21 | 1 20 . Kinetic 128 | . 128 . Thermal 645 | . 604 41 Explosive . | . . . Electromagnetic . | . . . Impact . | . . . Slashing . | . . . Piercing . | . . . Highest Corruption 2 | . 2 . Average Corruption 2 | . 2 . Corruption Purged . | . . . Effects 9 | . 9 . Message Errors 4 | . 4 . Energy Discharges 3 | . 3 . Data Loss (minor) 2 | . 2 . Overload Shots . | . . . Overflow Damage . | . . . Projectiles . | . . . Explosions . | . . . Melee . | . . . Knockbacks . | . . . Impact . | . . . Kinetic . | . . . Secondary . | . . . Self-Inflicted Damage . | . . . Shots . | . . . Rammed 7 | 1 6 . Targets Rammed 7 | 1 6 . Kicked . | . . . Crushed . | . . . Highest Temperature 168 | . 168 13 Average Temperature 60 | . 61 12 Received Heat Transfer 309 | . 234 75 Siege Activations . | . . . Robots Corrupted . | . . . Combat Hostiles . | . . . Parts Fried . | . . . Impact Corruptions . | . . . Robots Melted . | . . . Combat Hostiles . | . . . Parts Melted 1 | . 1 . Heat Transferred 1460 | . 1360 100 Parts Sabotaged . | . . . Parts Stolen . | . . . Parts Stripped . | . . . Power Chain Reactions . | . . . Missiles Intercepted . | . . . Alert | -11 -10 -9 ------- Run | Scr Mat Mat Peak Influence 215 | . 215 37 Average Influence 46 | . 52 35 Maximum Alert Level 1 | . 1 . Low Security (%) 99 | 100 99 100 Level 1 . | . . . Level 2 . | . . . Level 3 . | . . . Level 4 . | . . . Level 5 . | . . . High Security . | . . . Max Security . | . . . Squads Dispatched 3 | . 3 . Investigation 1 | . 1 . Extermination . | . . . Reinforcement 2 | . 2 . Assault . | . . . Garrison . | . . . Intercept . | . . . Construction Impeded . | . . . Haulers Reinforced . | . . . Stealth | -11 -10 -9 --------- Run | Scr Mat Mat Distress Signals . | . . . Communications Jammed . | . . . Distress Signals . | . . . Times Spotted 29 | . 24 5 Peak Tracking Total 8 | . 8 5 Tactical Retreats 2 | . 2 . Traps | -11 -10 -9 ------- Run | Scr Mat Mat Traps Triggered 2 | . 2 . Indirectly . | . . . Trap Hack Attempts . | . . . Triggered . | . . . Disarmed . | . . . Reprogrammed . | . . . Reused . | . . . Traps Extracted . | . . . Installed . | . . . Triggered . | . . . Machines | -11 -10 -9 ---------- Run | Scr Mat Mat Machines Disabled . | . . . Max in Single Turn . | . . . Machines Sabotaged . | . . . Garrisons Compromised . | . . . Overloaded Fab Kills . | . . . Fab Network Shutdowns . | . . . Hacking | -11 -10 -9 --------- Run | Scr Mat Mat Machines Accessed . | . . . Terminals . | . . . Fabricators . | . . . Repair Stations . | . . . Recycling Units . | . . . Scanalyzers . | . . . Garrison Access . | . . . Total Hacks . | . . . Successful . | . . . Failed . | . . . Catastrophic . | . . . Database Lockouts . | . . . Manual . | . . . Terminals . | . . . Fabricators . | . . . Repair Stations . | . . . Recycling Units . | . . . Scanalyzers . | . . . Garrison Access . | . . . Terminal Hacks . | . . . Fabricator Hacks . | . . . Repair Station Hacks . | . . . Recycling Unit Hacks . | . . . Scanalyzer . | . . . Garrison Access Hacks . | . . . Unauthorized Hacks . | . . . Terminals . | . . . Fabricators . | . . . Repair Stations . | . . . Recycling Units . | . . . Scanalyzers . | . . . Garrison Access . | . . . Data Cores Recovered . | . . . Used . | . . . Hacking Detections . | . . . Full Trace Events . | . . . Feedback Events . | . . . Feedback Blocked . | . . . Robot Schematics Acquired . | . . . Robots Built . | . . . Matter . | . . . Time . | . . . Total Robot Build Rating . | . . . Part Schematics Acquired . | . . . Parts Built . | . . . Matter . | . . . Time . | . . . Total Part Build Rating . | . . . Parts Repaired . | . . . Time . | . . . Parts Recycled . | . . . Recycled Matter . | . . . Retrieved Matter . | . . . Retrieved Components . | . . . Parts Scanalyzed . | . . . Part Schematics Acquired . | . . . Parts Damaged . | . . . Bothacking | -11 -10 -9 ------------ Run | Scr Mat Mat Used RIF Installer . | . . . Robots Hacked . | . . . Non-combat . | . . . Combat . | . . . Robot Hacks Applied . | . . . Relay Couplers Released . | . . . Robots Rewired . | . . . Allies Hacked . | . . . Hacks Repelled . | . . . Allies | -11 -10 -9 -------- Run | Scr Mat Mat Total Allies . | . . . Largest Group . | . . . Highest-Rated Group . | . . . Highest-Rated Ally . | . . . Total Orders . | . . . Ally Attacks . | . . . Total Damage . | . . . Kills . | . . . Allies Corrupted . | . . . Allies Melted . | . . . Intel | -11 -10 -9 ------- Run | Scr Mat Mat Robot Analysis Total . | . . . Derelict Logs Recovered . | . . . Drone Launches . | . . . Drone Recoveries . | . . . Exploration | -11 -10 -9 ------------- Run | Scr Mat Mat Turns Passed 1362 | 105 1160 97 Spaces Moved 705 | 62 597 46 Core 4 | 4 . . Treads 701 | 58 597 46 Legs . | . . . Wheels . | . . . Hover . | . . . Flight . | . . . Fastest Speed 50 | 50 160 160 Average Speed 159 | 152 160 160 Slowest Speed 160 | 160 160 160 Overloaded Moves . | . . . Propulsion Burnouts . | . . . Robots Hopped . | . . . Cave-ins Triggered . | . . . Exploration Rate (%) 25 | 4 66 7 Regions Visited 2 Branch Regions . Pre-discovered Areas . | . . . Known Exits Taken . | . . . Unknown Exits Taken 2 | 1 1 . Scrap Searched . | . . . Spaces Dug . | . . . Terrain Destroyed . | . . . Melee . | . . . Projectile . | . . . AOE . | . . . Actions | -11 -10 -9 --------- Run | Scr Mat Mat Total 830 | 72 694 64 Wait . | . . . Move 705 | 62 597 46 Hop . | . . . Pick Up 25 | 8 12 5 Fast Attach . | . . . Attach 16 | 2 10 4 Detach . | . . . Swap 1 | . 1 . Drop 8 | . 5 3 Fire 70 | . 64 6 Melee . | . . . Ram . | . . . Kick . | . . . Crush 5 | . 5 . Escape Stasis . | . . . Rewire . | . . . Trap . | . . . Miscellaneous . | . . . Route ------- -11/Scrapyard -10/Materials (discovered 4 exits: [*Mat x3] / [*Min]) -9/Materials History --------- Turn | Location | Event 27 | -11/Scrapyard | Discovered new exit (range 16) 106 | -11/Scrapyard | Entered Materials 301 | -10/Materials | Build established: Mutant 355 | -10/Materials | Discovered new exit (range 15) 953 | -10/Materials | Discovered new exit (range 15) 1149 | -10/Materials | Discovered new exit (range 15) 1209 | -10/Materials | Discovered new exit (range 11) 1250 | -10/Materials | Core integrity fell below 50% 1266 | -10/Materials | Entered another Materials area 1266 | -9/Materials | Evolved 2 slots: Utility x2 1363 | -9/Materials | Self-destructed Last Messages --------------- LOCATION=UNKNOWN GOAL=ESCAPE 01291_ Acquired Unknown Storage. 01292_ Dropped Sml. Storage Unit. 01292_ Identified Med. Matter Pod. 01293_ Dropped Med. Matter Pod. 01295_ Acquired Imp. Heat Sink. 01298_ Dropped Lrg. Battery. 01299_ Acquired Sml. Storage Unit. 01301_ Extracted 13 energy. 01302_ Acquired Lrg. Battery. 01311_ Acquired Imp. Targeting Computer. 01356_ Lgt. Treads destroyed. 01359_ Ion Engine destroyed. 01359_ C-30 ARC bursts open, deploying its payload. 01359_ G-47 Trooper unfolds itself. 01359_ G-34 Mercenary unfolds itself. 01360_ K-01 Serf collects debris. 01360_ Heat Sink destroyed. 01362_ Sml. Laser destroyed. Map ----- +----------------------------------------------------+ | ?????????????????????????????????????????????????? | | ?????????????????????????????????????????????????? | | ?????????????????????????????????????????????????? | | ?????????????????????????????????????????????????? | | ?????????????????????????????????????????????????? | | ?????????????????????????????????????????????????? | | ?????????????????????????????????????????????????? | | ?????????????????????????????????????????????????? | | ?????????????????????????????????????????????????? | | ?????????????????????????????????????????????????? | | ?????????????????????????????????????????????????? | | ?????????????????????????????????????????????????? | | ?????????????????????????????????????????????????? | | ?????????????????????????????????????????????????? | | ?????????????????????##??????????????????????????? | | ?????????????????????? ??????????????????????????? | | ????????????????????? ?????????????????????????? | | ?????????????k ????"" ?????????????????????????? | | ???????????? """ ?????????????????????????? | | ???????????? """ ?????????????????????????? | | ???????????? """ ????????????????????????? | | ??????????? """ ????????????????????????? | | ????????????? ????????????????????????? | | ????????????????# ##############??????????? | | ????????????????# u #??????????? | | ????????????????# @ #??????????? | | ????????????????# #??????????? | | ????????????????# #######+########??????? | | ????????????????# #?????# #??????? | | ????????????????# ggg rg#?????# """ #??????? | | ????????????????# "T" g%+?????# """ ! #??????? | | ????????????????# """ #?????# """ #??????? | | ???????????????+ r #?????# #??????? | | ?????????????? ## #?????# """ #??????? | | ?????????????#??##+##### #?????# """ #??????? | | ???????????????????????# #?????# """ #??????? | | ???????????????????????# #?????# #??????? | | ???????????????????????# #?????##########??????? | | ???????????????????????# ??????????????????????? | | ??????????????????????? ??????????????????????? | | ???????????????????????# ??????????????????????? | | ????????????????????????# #??????????????????????? | | ?????????????????????????????????????????????????? | | ?????????????????????????????????????????????????? | | ?????????????????????????????????????????????????? | | ?????????????????????????????????????????????????? | | ?????????????????????????????????????????????????? | | ?????????????????????????????????????????????????? | | ?????????????????????????????????????????????????? | | ?????????????????????????????????????????????????? | +----------------------------------------------------+ Best States ------------- Heat Dissipation 38 Energy Generation 10 Energy Capacity 650 Matter Stores 300 Matter Capacity 300 Sight Range 16 Terrain Scan Density 10 Power Shielding 33 Evasion (%) 40 Recoil Reduction 2 Item Schematics ----------------- None Robot Schematics ------------------ None Fabricated ------------ Nothing Alien Tech Used ----------------- None Achievements -------------- None Challenges ------------ None Game ------ Seed ForceControlMembrane Manual? 0 Play Time 00:08:33 Cumulative 10.0 hours Start 2020.05.08 @ 22:29:02 End 2020.05.08 @ 22:54:07 Sessions 2 Manual Loads 0 Difficulty Rogue Special Mode None Game No. 47 Rogue 47 Adventurer 0 Explorer 0 Win Type - Total 0 Types 0/0/0/0/0/0/0 Lore% 6 Gallery% 14 Achievement% 12 Wizard Run 0 Options --------- ASCII 0 Keyboard 0 Movement Arrows Keybinds 0 Fullscreen 0 Font 16/SmallcapsGlow Map View 76x50 Tactical HUD 1 Map Filters NONE Filters NONE Steam 1 RUN: 286fea51-09b8-4e93-aefd-3b5298b5f779